fUSD/lending_fUSD_20250623
["ID","MTS","AMOUNT","RATE_DAILY","PERIOD"]
[367260055,1750720286627,-743.41,0.00023287,2]
[367260056,1750720286637,-490.0,0.00023287,2]
[367260057,1750720286647,-490.0,0.00023287,2]
[367260058,1750720286656,-490.0,0.00023287,2]
[367260059,1750720286672,-1035.5,0.00023287,2]
[367260060,1750720286682,-1428.24,0.00023287,2]
[367260061,1750720286691,-578.07,0.00023287,2]
[367260062,1750720286701,-490.0,0.00023287,2]
[367260063,1750720286710,-490.0,0.00023287,2]
[367260064,1750720286721,-1560.27,0.00023287,2]
[367260065,1750720286730,-490.0,0.00023287,2]
[367260066,1750720286740,-490.0,0.00023287,2]
[367260067,1750720286750,-562.16492779,0.00023287,2]
[367260068,1750720286760,-1138.31,0.00023287,2]
[367260069,1750720286770,-490.0,0.00023287,2]
[367260070,1750720286780,-490.0,0.00023287,2]
[367260071,1750720286789,-490.0,0.00023287,2]
[367260072,1750720286799,-490.0,0.00023287,2]
[367260073,1750720286810,-228.64185495,0.00023287,2]
[367260074,1750720286820,-610.23,0.00023287,2]
[367260075,1750720286831,-1540.72,0.00023287,2]
[367260076,1750720286840,-490.0,0.00023287,2]
[367260077,1750720286850,-956.42,0.00023287,2]
[367260078,1750720286860,-490.0,0.00023287,2]
[367260079,1750720286870,-490.0,0.00023287,2]
[367260080,1750720286880,-755.88,0.00023287,2]
[367260081,1750720286890,-490.0,0.00023287,2]
[367260082,1750720286899,-510.44,0.00023287,2]
[367260083,1750720286912,-490.0,0.00023287,2]
[367260084,1750720286922,-490.0,0.00023287,2]
[367260085,1750720286932,-643.85,0.00023287,2]
[367260086,1750720286944,-490.0,0.00023287,2]
[367260087,1750720286957,-599.74,0.00023287,2]
[367260088,1750720286967,-490.0,0.00023287,2]
[367260089,1750720286977,-710.51,0.00023287,2]
[367260090,1750720286990,-490.0,0.00023287,2]
[367260091,1750720287000,-490.0,0.00023287,2]
[367260092,1750720287010,-749.42,0.00023287,2]
[367260093,1750720287020,-490.0,0.00023287,2]
[367260094,1750720287032,-490.0,0.00023287,2]
[367260095,1750720287043,-917.23,0.00023287,2]
[367260096,1750720287053,-599.32,0.00023287,2]
[367260097,1750720287063,-490.0,0.00023287,2]
[367260098,1750720287072,-720.89,0.00023287,2]
[367260099,1750720287082,-664.28,0.00023287,2]
[367260100,1750720287092,-1380.1,0.00023287,2]
[367260101,1750720287103,-490.0,0.00023287,2]
[367260102,1750720287113,-912.94,0.00023287,2]
[367260103,1750720287123,-490.0,0.00023287,2]
[367260104,1750720287132,-490.0,0.00023287,2]
[367260105,1750720287142,-583.16,0.00023287,2]
[367260106,1750720287151,-1214.44,0.00023287,2]
[367260107,1750720287167,-490.0,0.00023287,2]
[367260108,1750720287177,-490.0,0.00023287,2]
[367260109,1750720287187,-1030.72,0.00023287,2]
[367260110,1750720287196,-602.99,0.00023287,2]
[367260111,1750720287206,-490.0,0.00023287,2]
[367260112,1750720287216,-592.75,0.00023287,2]
[367260113,1750720287226,-917.93,0.00023287,2]
[367260114,1750720287236,-940.21,0.00023287,2]
[367260115,1750720287245,-490.0,0.00023287,2]
[367260116,1750720287255,-1267.09,0.00023287,2]
[367260117,1750720287265,-490.0,0.00023287,2]
[367260118,1750720287275,-490.0,0.00023287,2]
[367260119,1750720287285,-490.0,0.00023287,2]
[367260120,1750720287295,-761.58,0.00023287,2]
[367260121,1750720287305,-490.0,0.00023287,2]
[367260122,1750720287316,-613.73,0.00023287,2]
[367260123,1750720287326,-1017.08,0.00023287,2]
[367260124,1750720287336,-490.0,0.00023287,2]
[367260125,1750720287346,-694.19,0.00023287,2]
[367260126,1750720287355,-490.0,0.00023287,2]
[367260127,1750720287365,-897.84,0.00023287,2]
[367260128,1750720287374,-982.43,0.00023287,2]
[367260129,1750720287384,-490.0,0.00023287,2]
[367260130,1750720287394,-490.0,0.00023287,2]
[367260131,1750720287404,-760.55,0.00023287,2]
[367260132,1750720287416,-490.0,0.00023287,2]
[367260133,1750720287426,-1819.88,0.00023287,2]
[367260134,1750720287435,-490.0,0.00023287,2]
[367260135,1750720287445,-669.64,0.00023287,2]
[367260136,1750720287455,-490.0,0.00023287,2]
[367260137,1750720287464,-490.0,0.00023287,2]
[367260138,1750720287474,-644.61,0.00023287,2]
[367260139,1750720287484,-490.0,0.00023287,2]
[367260140,1750720287495,-490.0,0.00023287,2]
[367260141,1750720287504,-1824.55,0.00023287,2]
[367260142,1750720287514,-718.38,0.00023287,2]
[367260143,1750720287524,-963.57,0.00023287,2]
[367260144,1750720287534,-536.46,0.00023287,2]
[367260145,1750720287544,-490.0,0.00023287,2]
[367260146,1750720287555,-490.0,0.00023287,2]
[367260147,1750720287564,-2293.31,0.00023287,2]
[367260148,1750720287574,-490.0,0.00023287,2]
[367260149,1750720287583,-1489.68,0.00023287,2]
[367260150,1750720287593,-646.41,0.00023287,2]
[367260151,1750720287603,-2805.91,0.00023287,2]
[367260152,1750720287613,-1394.63,0.00023287,2]
[367260153,1750720287623,-2616.36,0.00023287,2]
[367260154,1750720287632,-490.0,0.00023287,2]
[367260155,1750720287642,-638.23,0.00023287,2]
[367260156,1750720287652,-497.04,0.00023287,2]
[367260157,1750720287667,-831.27,0.00023287,2]
[367260158,1750720287677,-769.28,0.00023287,2]
[367260159,1750720287687,-3452.29,0.00023287,2]
[367260160,1750720287697,-581.2,0.00023287,2]
[367260161,1750720287707,-9399.59,0.00023287,2]
[367260162,1750720287716,-710.04,0.00023287,2]
[367260163,1750720287726,-1061.59,0.00023287,2]
[367260164,1750720287736,-490.0,0.00023287,2]
[367260165,1750720287746,-490.0,0.00023287,2]
[367260166,1750720287756,-947.34,0.00023287,2]
[367260167,1750720287766,-1026.38,0.00023287,2]
[367260168,1750720287775,-726.73,0.00023287,2]
[367260169,1750720287785,-1802.18,0.00023287,2]
[367260170,1750720287795,-1184.26,0.00023287,2]
[367260171,1750720287805,-792.98,0.00023287,2]
[367260172,1750720287815,-1150.8,0.00023287,2]
[367260173,1750720287824,-930.74,0.00023287,2]
[367260174,1750720287834,-605.1,0.00023287,2]
[367260175,1750720287844,-863.73,0.00023287,2]
[367260176,1750720287854,-4136.86,0.00023287,2]
[367260177,1750720287864,-490.0,0.00023287,2]
[367260178,1750720287873,-538.91,0.00023287,2]
[367260179,1750720287883,-657.58,0.00023287,2]
[367260180,1750720287893,-2102.05,0.00023287,2]
[367260181,1750720287903,-914.31,0.00023287,2]
[367260182,1750720287915,-870.44,0.00023287,2]
[367260183,1750720287926,-490.0,0.00023287,2]
[367260184,1750720287936,-2161.05,0.00023287,2]
[367260185,1750720287950,-598.29,0.00023287,2]
[367260186,1750720287960,-1160.51,0.00023287,2]
[367260187,1750720287970,-1075.55,0.00023287,2]
[367260188,1750720287980,-5318.79,0.00023287,2]
[367260189,1750720287991,-4925.64,0.00023287,2]
[367260190,1750720288001,-690.98,0.00023287,2]
[367260191,1750720288011,-2160.42,0.00023287,2]
[367260192,1750720288021,-582.65,0.00023287,2]
[367260193,1750720288032,-490.0,0.00023287,2]
[367260194,1750720288274,-596.44,0.00023287,2]
[367260195,1750720288284,-2330.86,0.00023287,2]
[367260196,1750720288294,-559.59940688,0.00023287,2]
[367260197,1750720288304,-582.81708311,0.00023287,2]
[367260198,1750720288313,-1061.28,0.00023287,2]
[367260199,1750720288323,-3640.93,0.00023287,2]
[367260200,1750720288333,-16.36607589,0.00023287,2]
[367260201,1750720288858,-634.55902657,0.00023287,2]
[367260202,1750720288873,-62.92489754,0.00023287,2]
[367260203,1750720288883,-490.0,0.00023287,2]
[367260204,1750720288894,-546.51,0.00023287,2]
[367260205,1750720288904,-1131.4,0.00023287,2]
[367260206,1750720288916,-913.07,0.00023287,2]
[367260207,1750720288927,-622.0,0.00023287,2]
[367260208,1750720288938,-888.12,0.00023287,2]
[367260209,1750720288949,-522.4096465,0.00023287,2]
[367260210,1750720288975,-490.0,0.00022191,2]
[367260211,1750720288985,-442.5703535,0.00023287,2]
[367260212,1750720288996,-503.26,0.00023287,2]
[367260213,1750720289006,-654.36,0.00023287,2]
[367260215,1750720289016,-917.79,0.00023287,2]
[367260216,1750720289028,-490.0,0.00023287,2]
[367260217,1750720289038,-2848.4,0.00023287,2]
[367260218,1750720289048,-804.65,0.00023287,2]
[367260219,1750720289058,-595.99,0.00023287,2]
[367260220,1750720289068,-1492.92,0.00023287,2]
[367260221,1750720289078,-490.0,0.00023287,2]
[367260222,1750720289088,-1166.2,0.00023287,2]
[367260223,1750720289098,-720.0396465,0.00023287,2]
[367260224,1750720289111,-505.44610946,0.00023287,2]
[367260225,1750720289123,-478.22424404,0.00023287,2]
[367260226,1750720289133,-700.39641608,0.00023287,2]
[367260227,1750720289144,-127.06358392,0.00023287,2]
[367260228,1750720289154,-490.0,0.00023287,2]
[367260229,1750720289164,-142.61466875,0.00023287,2]
[367260230,1750720289406,-473.66435226,0.00021917,2]
[367260231,1750720289426,-581.68883009,0.00021917,2]
[367260232,1750720289450,-1.01681765,0.00021917,2]
[367260234,1750720289459,-793.26638234,0.00022191,2]
[367260235,1750720289471,-263.10361766,0.00022191,2]
[367260236,1750720289481,-490.0,0.00022465,2]
[367260237,1750720289490,-1056.37,0.00022465,2]
[367260238,1750720289500,-490.0,0.00022739,2]
[367260239,1750720289509,-1056.37,0.00022739,2]
[367260240,1750720289519,-490.0,0.00023013,2]
[367260241,1750720289530,-1056.37,0.00023013,2]
[367260242,1750720289540,-1170.32533125,0.00023287,2]
[367260243,1750720289550,-1989.89,0.00023287,2]
[367260244,1750720289560,-490.0,0.00023287,2]
[367260245,1750720289570,-870.99,0.00023287,2]
[367260246,1750720289579,-965.17,0.00023287,2]
[367260247,1750720289589,-1651.42,0.00023287,2]
[367260248,1750720289599,-637.24,0.00023287,2]
[367260249,1750720289609,-635.65,0.00023287,2]
[367260250,1750720289618,-785.95,0.00023287,2]
[367260251,1750720289628,-674.96,0.00023287,2]
[367260252,1750720289638,-1518.67,0.00023287,2]
[367260253,1750720289647,-625.98,0.00023287,2]
[367260254,1750720289657,-490.0,0.00023287,2]
[367260255,1750720289669,-3091.78,0.00023287,2]
[367260256,1750720289679,-1403.62,0.00023287,2]
[367260257,1750720289689,-588.85,0.00023287,2]
[367260258,1750720289699,-792.11,0.00023287,2]
[367260259,1750720289711,-736.24,0.00023287,2]
[367260260,1750720289722,-1521.33,0.00023287,2]
[367260261,1750720289734,-608.22,0.00023287,2]
[367260262,1750720289745,-656.6,0.00023287,2]
[367260263,1750720289756,-490.0,0.00023287,2]
[367260264,1750720289766,-2536.56,0.00023287,2]
[367260265,1750720289778,-552.96,0.00023287,2]
[367260266,1750720289789,-490.0,0.00023287,2]
[367260267,1750720289800,-490.0,0.00023287,2]
[367260268,1750720289810,-490.0,0.00023287,2]
[367260269,1750720289820,-954.36,0.00023287,2]
[367260270,1750720289830,-3653.75,0.00023287,2]
[367260271,1750720289839,-1770.55,0.00023287,2]
[367260272,1750720289849,-490.0,0.00023287,2]
[367260273,1750720289858,-1766.86,0.00023287,2]
[367260274,1750720289868,-6832.89,0.00023287,2]
[367260275,1750720289878,-217.4,0.00023287,2]
[367260276,1750720289888,-1012.51,0.00023287,2]
[367260277,1750720289898,-1301.41,0.00023287,2]
[367260278,1750720289909,-700.46,0.00023287,2]
[367260279,1750720289919,-575.02,0.00023287,2]
[367260280,1750720289928,-99267.01,0.00023287,2]
[367260281,1750720289938,-490.0,0.00023287,2]
[367260282,1750720289948,-3999.93,0.00023287,2]
[367260283,1750720289961,-1251.72,0.00023287,2]
[367260284,1750720289971,-490.0,0.00023287,2]
[367260285,1750720289982,-690.99,0.00023287,2]
[367260286,1750720289993,-490.0,0.00023287,2]
[367260287,1750720290004,-1289.5,0.00023287,2]
[367260288,1750720290014,-674.55,0.00023287,2]
[367260289,1750720290025,-892.01,0.00023287,2]
[367260290,1750720290036,-586.68,0.00023287,2]
[367260291,1750720290047,-1186.95,0.00023287,2]
[367260292,1750720290059,-628.08,0.00023287,2]
[367260293,1750720290070,-491.89,0.00023287,2]
[367260294,1750720290081,-1120.03,0.00023287,2]
[367260295,1750720290091,-897.51,0.00023287,2]
[367260296,1750720290101,-1083.77,0.00023287,2]
[367260297,1750720290112,-490.0,0.00023287,2]
[367260298,1750720290121,-641.31,0.00023287,2]
[367260299,1750720290131,-1068.09,0.00023287,2]
[367260300,1750720290141,-1194.36,0.00023287,2]
[367260301,1750720290151,-490.0,0.00023287,2]
[367260302,1750720290161,-767.69,0.00023287,2]
[367260303,1750720290171,-575.13,0.00023287,2]
[367260304,1750720290180,-2490.5,0.00023287,2]
[367260305,1750720290190,-1497.6,0.00023287,2]
[367260306,1750720290201,-566.87,0.00023287,2]
[367260307,1750720290210,-533.37,0.00023287,2]
[367260308,1750720290221,-830.3,0.00023287,2]
[367260309,1750720290231,-1805.1,0.00023287,2]
[367260310,1750720290242,-776.33,0.00023287,2]
[367260311,1750720290254,-811.01,0.00023287,2]
[367260312,1750720290264,-12231.5,0.00023287,2]
[367260313,1750720290274,-895.61,0.00023287,2]
[367260314,1750720290283,-1834.68,0.00023287,2]
[367260315,1750720290293,-604.76,0.00023287,2]
[367260316,1750720290302,-942.76,0.00023287,2]
[367260317,1750720290312,-9723.96,0.00023287,2]
[367260318,1750720290322,-490.0,0.00023287,2]
[367260319,1750720290333,-490.0,0.00023287,2]
[367260320,1750720290344,-3237.93,0.00023287,2]
[367260321,1750720290355,-783.99,0.00023287,2]
[367260322,1750720290365,-4513.59,0.00023287,2]
[367260323,1750720290375,-490.0,0.00023287,2]
[367260324,1750720290384,-1103.03,0.00023287,2]
[367260325,1750720290394,-535.9,0.00023287,2]
[367260326,1750720290404,-490.0,0.00023287,2]
[367260327,1750720290415,-1066.43,0.00023287,2]
[367260328,1750720290425,-490.0,0.00023287,2]
[367260329,1750720290434,-907.6,0.00023287,2]
[367260330,1750720290444,-947.45,0.00023287,2]
[367260331,1750720290454,-1324.93,0.00023287,2]
[367260332,1750720290463,-1319.89,0.00023287,2]
[367260333,1750720290473,-490.0,0.00023287,2]
[367260334,1750720290483,-4371.79,0.00023287,2]
[367260335,1750720290493,-1113.07,0.00023287,2]
[367260336,1750720290619,-490.0,0.00023287,2]
[367260337,1750720290631,-744.09,0.00023287,2]
[367260338,1750720290641,-630.35,0.00023287,2]
[367260339,1750720290653,-490.0,0.00023287,2]
[367260340,1750720290665,-883.29,0.00023287,2]
[367260341,1750720290675,-898.49,0.00023287,2]
[367260342,1750720290685,-1761.89,0.00023287,2]
[367260343,1750720290694,-994.28,0.00023287,2]
[367260344,1750720290703,-3421.79,0.00023287,2]
[367260345,1750720290712,-2038.68,0.00023287,2]
[367260346,1750720290721,-943.38,0.00023287,2]
[367260347,1750720290730,-490.0,0.00023287,2]
[367260348,1750720290740,-490.0,0.00023287,2]
[367260349,1750720290751,-2547.54,0.00023287,2]
[367260350,1750720290761,-490.0,0.00023287,2]
[367260351,1750720290771,-1646.59,0.00023287,2]
[367260352,1750720290780,-646.88,0.00023287,2]
[367260353,1750720290792,-977.81,0.00023287,2]
[367260354,1750720290801,-705.0,0.00023287,2]
[367260355,1750720290811,-784.56,0.00023287,2]
[367260356,1750720290820,-571.39,0.00023287,2]
[367260357,1750720290830,-1044.99,0.00023287,2]
[367260358,1750720290840,-707.98,0.00023287,2]
[367260359,1750720290850,-490.0,0.00023287,2]
[367260360,1750720290860,-758.21,0.00023287,2]
[367260361,1750720290870,-490.0,0.00023287,2]
[367260362,1750720290880,-24749.35,0.00023287,2]
[367260363,1750720290890,-490.0,0.00023287,2]
[367260364,1750720290900,-2686.176655,0.00023287,2]
[367260365,1750720290910,-961.66,0.00023287,2]
[367260366,1750720290919,-644.07,0.00023287,2]
[367260367,1750720290928,-548.09,0.00023287,2]
[367260368,1750720290939,-490.0,0.00023287,2]
[367260369,1750720290951,-1807.84,0.00023287,2]
[367260370,1750720290960,-1049.93,0.00023287,2]
[367260371,1750720290970,-490.0,0.00023287,2]
[367260372,1750720290980,-490.0,0.00023287,2]
[367260373,1750720290991,-1031.44,0.00023287,2]
[367260374,1750720291000,-719.14,0.00023287,2]
[367260375,1750720291010,-505.77,0.00023287,2]
[367260376,1750720291019,-905.31,0.00023287,2]
[367260377,1750720291029,-735.92,0.00023287,2]
[367260378,1750720291038,-629.84,0.00023287,2]
[367260379,1750720291048,-884.52,0.00023287,2]
[367260380,1750720291057,-652.97,0.00023287,2]
[367260381,1750720291067,-781.37,0.00023287,2]
[367260382,1750720291076,-1808.03,0.00023287,2]
[367260383,1750720291085,-490.0,0.00023287,2]
[367260384,1750720291095,-490.0,0.00023287,2]
[367260385,1750720291105,-4000.0,0.000233,2]
[367260386,1750720291114,-2000.0,0.000233,2]
[367260387,1750720291124,-501.0335,0.000233,2]
[367260388,1750720291134,-165.7,0.000233,8]
[367260389,1750720291144,-3015.5776,0.000233,2]
[367260390,1750720291153,-2695.9608,0.000233,2]
[367260391,1750720291163,-1905.6378,0.000233,2]
[367260392,1750720291172,-161.87274242,0.00023315,30]
[367260393,1750720291182,-210.0,0.0002332,2]
[367260394,1750720291192,-180.0,0.00023331,2]
[367260395,1750720291201,-7710.50293662,0.00023339,2]
[367260396,1750720291211,-150.0,0.00023344,2]
[367260397,1750720291220,-10091.44007104,0.00023344,2]
[367260398,1750720291230,-150.0,0.00023344,2]
[367260399,1750720291239,-574.54628802,0.00023344,2]
[367260400,1750720291249,-150.0,0.00023344,2]
[367260401,1750720291259,-3901.7597376,0.00023344,2]
[367260402,1750720291268,-150.0,0.00023344,2]
[367260403,1750720291277,-16500.31944352,0.00023344,2]
[367260404,1750720291287,-150.0,0.00023344,2]
[367260405,1750720291296,-2041.60872746,0.00023344,2]
[367260406,1750720291306,-161.87274242,0.00023397,30]
[367260407,1750720291315,-200.0,0.000234,2]
[367260408,1750720291325,-1905.6378,0.000234,2]
[367260409,1750720291335,-462.14,0.00023437,2]
[367260410,1750720291344,-161.87274242,0.00023479,30]
[367260411,1750720291353,-7710.50293662,0.00023491,2]
[367260412,1750720291363,-1778.07,0.000235,2]
[367260413,1750720291373,-635.0,0.0002353,2]
[367260414,1750720291383,-5056.2299837,0.00023545,2]
[367260415,1750720291392,-44131.7463266,0.00023545,2]
[367260416,1750720291402,-3330.7460067,0.00023545,2]
[367260417,1750720291413,-111592.2253315,0.00023545,2]
[367260418,1750720291423,-15636.6614733,0.00023545,2]
[367260419,1750720291432,-164.18,0.00023561,2]
[367260420,1750720291442,-13816.71887659,0.00023561,2]
[367260421,1750720291451,-1831.946697,0.00023561,2]
[367260422,1750720291461,-587.704015,0.00023561,2]
[367260423,1750720291470,-490.0,0.00023561,2]
[367260424,1750720291479,-490.0,0.00023561,2]
[367260425,1750720291489,-490.0,0.00023561,2]
[367260426,1750720291498,-490.0,0.00023561,2]
[367260427,1750720291507,-563.59,0.00023561,2]
[367260428,1750720291517,-490.0,0.00023561,2]
[367260429,1750720291525,-743.16,0.00023561,2]
[367260430,1750720291534,-646.68,0.00023561,2]
[367260431,1750720291543,-490.0,0.00023561,2]
[367260432,1750720291553,-490.0,0.00023561,2]
[367260433,1750720291562,-603.39,0.00023561,2]
[367260434,1750720291571,-490.0,0.00023561,2]
[367260435,1750720291580,-557.33,0.00023561,2]
[367260436,1750720291589,-490.0,0.00023561,2]
[367260437,1750720291599,-490.0,0.00023561,2]
[367260438,1750720291609,-518.87,0.00023561,2]
[367260439,1750720291618,-490.0,0.00023561,2]
[367260440,1750720291628,-490.0,0.00023561,2]
[367260441,1750720291637,-490.0,0.00023561,2]
[367260442,1750720291646,-490.0,0.00023561,2]
[367260443,1750720291656,-584.66,0.00023561,2]
[367260444,1750720291666,-590.15,0.00023561,2]
[367260445,1750720291676,-490.0,0.00023561,2]
[367260446,1750720291686,-780.22,0.00023561,2]
[367260447,1750720291695,-490.0,0.00023561,2]
[367260448,1750720291705,-490.0,0.00023561,2]
[367260449,1750720291714,-528.35,0.00023561,2]
[367260450,1750720291724,-594.06,0.00023561,2]
[367260451,1750720291733,-551.00269279,0.00023561,2]
[367260452,1750720291742,-566.03,0.00023561,2]
[367260453,1750720291752,-490.0,0.00023561,2]
[367260454,1750720291760,-490.0,0.00023561,2]
[367260455,1750720291768,-300.0,0.00023561,2]
[367260456,1750720291777,-490.0,0.00023561,2]
[367260457,1750720291786,-724.91,0.00023561,2]
[367260458,1750720291796,-490.0,0.00023561,2]
[367260459,1750720291805,-630.84,0.00023561,2]
[367260460,1750720291814,-490.0,0.00023561,2]
[367260461,1750720291825,-490.0,0.00023561,2]
[367260462,1750720291834,-524.88,0.00023561,2]
[367260463,1750720291844,-635.47871784,0.00023561,2]
[367260464,1750720291853,-490.0,0.00023561,2]
[367260465,1750720291864,-490.0,0.00023561,2]
[367260466,1750720291874,-490.0,0.00023561,2]
[367260467,1750720291883,-490.0,0.00023561,2]
[367260468,1750720291893,-490.0,0.00023561,2]
[367260469,1750720291902,-589.97,0.00023561,2]
[367260470,1750720291913,-490.0,0.00023561,2]
[367260471,1750720291922,-490.0,0.00023561,2]
[367260472,1750720291931,-490.0,0.00023561,2]
[367260473,1750720291941,-743.05,0.00023561,2]
[367260474,1750720291951,-366.18470962,0.00023561,2]
[367260475,1750720291964,-538.01,0.00023561,2]
[367260476,1750720291973,-693.79,0.00023561,2]
[367260477,1750720291983,-490.0,0.00023561,2]
[367260478,1750720291992,-490.0,0.00023561,2]
[367260479,1750720292001,-490.0,0.00023561,2]
[367260480,1750720292010,-490.0,0.00023561,2]
[367260481,1750720292020,-490.0,0.00023561,2]
[367260482,1750720292031,-793.15,0.00023561,2]
[367260483,1750720292040,-608.3,0.00023561,2]
[367260484,1750720292050,-610.99,0.00023561,2]
[367260485,1750720292060,-250.0,0.00023561,2]
[367260486,1750720292069,-490.0,0.00023561,2]
[367260487,1750720292078,-698.55,0.00023561,2]
[367260488,1750720292088,-500.02,0.00023561,2]
[367260489,1750720292097,-917.55,0.00023561,2]
[367260490,1750720292106,-812.47,0.00023561,2]
[367260491,1750720292116,-490.0,0.00023561,2]
[367260492,1750720292126,-637.003955,0.00023561,2]
[367260493,1750720292136,-490.0,0.00023561,2]
[367260494,1750720292145,-490.0,0.00023561,2]
[367260495,1750720292155,-759.24,0.00023561,2]
[367260496,1750720292165,-545.58,0.00023561,2]
[367260497,1750720292174,-840.98,0.00023561,2]
[367260498,1750720292184,-490.0,0.00023561,2]
[367260499,1750720292193,-1083.75,0.00023561,2]
[367260500,1750720292202,-490.0,0.00023561,2]
[367260501,1750720292211,-218.91838448,0.00023561,2]
[367260502,1750720292220,-676.91,0.00023561,2]
[367260503,1750720292229,-827.47,0.00023561,2]
[367260504,1750720292240,-490.0,0.00023561,2]
[367260505,1750720292250,-628.72,0.00023561,2]
[367260506,1750720292259,-554.99,0.00023561,2]
[367260507,1750720292269,-1200.9,0.00023561,2]
[367260508,1750720292278,-574.5,0.00023561,2]
[367260509,1750720292287,-622.34,0.00023561,2]
[367260510,1750720292297,-490.0,0.00023561,2]
[367260511,1750720292307,-490.0,0.00023561,2]
[367260512,1750720292316,-538.21,0.00023561,2]
[367260513,1750720292325,-971.79,0.00023561,2]
[367260514,1750720292335,-1028.56,0.00023561,2]
[367260515,1750720292345,-490.0,0.00023561,2]
[367260516,1750720292355,-490.0,0.00023561,2]
[367260517,1750720292364,-490.0,0.00023561,2]
[367260518,1750720292374,-490.0,0.00023561,2]
[367260519,1750720292383,-490.0,0.00023561,2]
[367260520,1750720292393,-545.47,0.00023561,2]
[367260521,1750720292403,-1263.38,0.00023561,2]
[367260522,1750720292413,-505.37,0.00023561,2]
[367260523,1750720292422,-490.0,0.00023561,2]
[367260524,1750720292432,-688.47,0.00023561,2]
[367260525,1750720292441,-816.17,0.00023561,2]
[367260526,1750720292451,-610.98,0.00023561,2]
[367260527,1750720292462,-490.0,0.00023561,2]
[367260528,1750720292471,-511.19,0.00023561,2]
[367260529,1750720292480,-756.92,0.00023561,2]
[367260530,1750720292490,-490.0,0.00023561,2]
[367260531,1750720292499,-1422.61,0.00023561,2]
[367260532,1750720292509,-712.06,0.00023561,2]
[367260533,1750720292519,-544.78,0.00023561,2]
[367260534,1750720292531,-797.95,0.00023561,2]
[367260535,1750720292541,-798.42,0.00023561,2]
[367260536,1750720292552,-490.0,0.00023561,2]
[367260537,1750720292562,-490.0,0.00023561,2]
[367260538,1750720292573,-490.0,0.00023561,2]
[367260539,1750720292584,-948.64,0.00023561,2]
[367260540,1750720292594,-723.12,0.00023561,2]
[367260541,1750720292605,-490.0,0.00023561,2]
[367260542,1750720292616,-490.0,0.00023561,2]
[367260543,1750720292627,-490.0,0.00023561,2]
[367260544,1750720292636,-490.0,0.00023561,2]
[367260545,1750720292647,-547.15,0.00023561,2]
[367260546,1750720292657,-490.0,0.00023561,2]
[367260547,1750720292668,-490.0,0.00023561,2]
[367260548,1750720292678,-664.8,0.00023561,2]
[367260549,1750720292688,-490.0,0.00023561,2]
[367260550,1750720292698,-494.01,0.00023561,2]
[367260551,1750720292707,-765.15,0.00023561,2]
[367260552,1750720292716,-498.85,0.00023561,2]
[367260553,1750720292726,-490.0,0.00023561,2]
[367260554,1750720292736,-490.0,0.00023561,2]
[367260555,1750720292746,-490.0,0.00023561,2]
[367260556,1750720292755,-490.0,0.00023561,2]